Workbook

Sheet Лист1
F1: 27 | H1: 28 | K1: 29 | N1: 30 | Q1: 31 | T1: 32 | W1: 33 | Z1: 34 | AC1: 35 | AF1: 36 | AI1: 37
F2: в | G2: м | H2: в | I2: м | J2: м* | K2: в | L2: м | M2: м* | N2: в | O2: м | P2: м* | Q2: в | R2: м | S2: м* | T2: в | U2: м | V2: м* | W2: в | X2: м | Y2: м* | Z2: в | AA2: м | AB2: м* | AC2: в | AD2: м | AE2: м* | AF2: в | AG2: м | AH2: м* | AI2: в | AJ2: м | AK2: м*
B3: 1 | C3: Патрисио Перес | E3: Gk | F3: 24 | G3: 135 | H3: 25 | I3: 141 | J3: 142 | K3: 26 | L3: 146 | M3: 148 | N3: 27 | O3: 151 | P3: 154 | Q3: 28 | R3: 156 | S3: 159 | T3: 29 | U3: 160 | V3: 164 | W3: 30 | X3: 164 | Y3: 168 | Z3: 31 | AA3: 167 | AB3: 172 | AC3: 32 | AD3: 166 | AE3: 172 | AF3: 33 | AG3: 163 | AH3: 169 | AI3: 34 | AJ3: 158 | AK3: 165
B4: 21 | C4: Усама Карим | E4: Gk | F4: 17 | G4: 32 | H4: 18 | I4: 55 | J4: 58 | K4: 19 | L4: 70 | M4: 74 | N4: 20 | O4: 81 | P4: 86 | Q4: 21 | R4: 90 | S4: 96 | T4: 22 | U4: 99 | V4: 105 | W4: 23 | X4: 106 | Y4: 113 | Z4: 24 | AA4: 112 | AB4: 120 | AC4: 25 | AD4: 118 | AE4: 126 | AF4: 26 | AG4: 123 | AH4: 131 | AI4: 27 | AJ4: 128 | AK4: 136
B5: 2 | C5: Диего Армандо Кальво Месен | E5: Cd/Ld | F5: 23 | G5: 100 | H5: 24 | I5: 125 | J5: 128 | K5: 25 | L5: 137 | M5: 141 | N5: 26 | O5: 146 | P5: 151 | Q5: 27 | R5: 153 | S5: 158 | T5: 28 | U5: 159 | V5: 164 | W5: 29 | X5: 164 | Y5: 170 | Z5: 30 | AA5: 168 | AB5: 174 | AC5: 31 | AD5: 168 | AE5: 175 | AF5: 32 | AG5: 166 | AH5: 173 | AI5: 33 | AJ5: 162 | AK5: 168
B6: 4 | C6: Абдалла Мурад | E6: Cd/Rd | F6: 23 | G6: 124 | H6: 24 | I6: 134 | J6: 136 | K6: 25 | L6: 142 | M6: 145 | N6: 26 | O6: 149 | P6: 153 | Q6: 27 | R6: 155 | S6: 159 | T6: 28 | U6: 159 | V6: 164 | W6: 29 | X6: 164 | Y6: 169 | Z6: 30 | AA6: 168 | AB6: 173 | AC6: 31 | AD6: 167 | AE6: 173 | AF6: 32 | AG6: 165 | AH6: 171 | AI6: 33 | AJ6: 161 | AK6: 167
B7: 5 | C7: Аферни А.Клеберг | E7: Cd/Lwd | F7: 22 | G7: 94 | H7: 23 | I7: 116 | J7: 119 | K7: 24 | L7: 128 | M7: 132 | N7: 25 | O7: 137 | P7: 141 | Q7: 26 | R7: 144 | S7: 149 | T7: 27 | U7: 149 | V7: 155 | W7: 28 | X7: 154 | Y7: 160 | Z7: 29 | AA7: 158 | AB7: 164 | AC7: 30 | AD7: 162 | AE7: 169 | AF7: 31 | AG7: 162 | AH7: 169 | AI7: 32 | AJ7: 159 | AK7: 167
B8: 3 | C8: Бредэ Матиас | E8: Cd/Dm | F8: 23 | G8: 120 | H8: 24 | I8: 133 | J8: 135 | K8: 25 | L8: 142 | M8: 145 | N8: 26 | O8: 149 | P8: 153 | Q8: 27 | R8: 155 | S8: 159 | T8: 28 | U8: 159 | V8: 164 | W8: 29 | X8: 164 | Y8: 169 | Z8: 30 | AA8: 167 | AB8: 173 | AC8: 31 | AD8: 167 | AE8: 173 | AF8: 32 | AG8: 166 | AH8: 171 | AI8: 33 | AJ8: 161 | AK8: 168
B9: 22 | C9: Фредрик Андре Бьоркан | E9: Cd/Rwd | F9: 22 | G9: 97 | H9: 23 | I9: 114 | J9: 117 | K9: 24 | L9: 125 | M9: 128 | N9: 25 | O9: 133 | P9: 134 | Q9: 26 | R9: 139 | S9: 144 | T9: 27 | U9: 145 | V9: 150 | W9: 28 | X9: 149 | Y9: 155 | Z9: 29 | AA9: 153 | AB9: 159 | AC9: 30 | AD9: 157 | AE9: 163 | AF9: 31 | AG9: 160 | AH9: 167 | AI9: 32 | AJ9: 159 | AK9: 166
B10: 24 | C10: Харди Ален Самаранч | E10: Rd/Rm | F10: 23 | G10: 120 | H10: 24 | I10: 132 | J10: 134 | K10: 25 | L10: 141 | M10: 143 | N10: 26 | O10: 147 | P10: 151 | Q10: 27 | R10: 153 | S10: 157 | T10: 28 | U10: 158 | V10: 162 | W10: 29 | X10: 162 | Y10: 167 | Z10: 30 | AA10: 166 | AB10: 172 | AC10: 31 | AD10: 168 | AE10: 174 | AF10: 32 | AG10: 167 | AH10: 174 | AI10: 33 | AJ10: 165 | AK10: 171
B11: 25 | C11: Хосе М.Корралес | E11: Lm/Lw | F11: 22 | G11: 110 | H11: 23 | I11: 125 | J11: 127 | K11: 24 | L11: 134 | M11: 137 | N11: 25 | O11: 142 | P11: 145 | Q11: 26 | R11: 148 | S11: 152 | T11: 27 | U11: 153 | V11: 158 | W11: 28 | X11: 158 | Y11: 164 | Z11: 29 | AA11: 162 | AB11: 168 | AC11: 30 | AD11: 166 | AE11: 173 | AF11: 31 | AG11: 166 | AH11: 172 | AI11: 32 | AJ11: 164 | AK11: 171
B12: 23 | C12: Али Хэйлок | E12: Cm/Dm | F12: 23 | G12: 114 | H12: 24 | I12: 125 | J12: 127 | K12: 25 | L12: 133 | M12: 135 | N12: 26 | O12: 139 | P12: 143 | Q12: 27 | R12: 145 | S12: 149 | T12: 28 | U12: 150 | V12: 154 | W12: 29 | X12: 154 | Y12: 159 | Z12: 30 | AA12: 158 | AB12: 163 | AC12: 31 | AD12: 158 | AE12: 164 | AF12: 32 | AG12: 155 | AH12: 162 | AI12: 33 | AJ12: 151 | AK12: 158
B13: 7 | C13: Йонас Фьелльберг | E13: Cm/Lm | F13: 22 | G13: 107 | H13: 23 | I13: 126 | J13: 128 | K13: 24 | L13: 137 | M13: 140 | N13: 25 | O13: 144 | P13: 148 | Q13: 26 | R13: 151 | S13: 155 | T13: 27 | U13: 156 | V13: 161 | W13: 28 | X13: 160 | Y13: 166 | Z13: 29 | AA13: 165 | AB13: 171 | AC13: 30 | AD13: 168 | AE13: 175 | AF13: 31 | AG13: 168 | AH13: 175 | AI13: 32 | AJ13: 166 | AK13: 173
B14: 6 | C14: Пол Файмасаса | E14: Cm/Rm | F14: 23 | G14: 104 | H14: 24 | I14: 127 | J14: 130 | K14: 25 | L14: 139 | M14: 142 | N14: 26 | O14: 147 | P14: 152 | Q14: 27 | R14: 154 | S14: 158 | T14: 28 | U14: 159 | V14: 164 | W14: 29 | X14: 163 | Y14: 169 | Z14: 30 | AA14: 167 | AB14: 173 | AC14: 31 | AD14: 167 | AE14: 173 | AF14: 32 | AG14: 165 | AH14: 171 | AI14: 33 | AJ14: 161 | AK14: 168
B15: 9 | C15: Рэми Нассалан | E15: Cm/Rw | F15: 23 | G15: 113 | H15: 24 | I15: 129 | J15: 131 | K15: 25 | L15: 139 | M15: 142 | N15: 26 | O15: 146 | P15: 150 | Q15: 27 | R15: 152 | S15: 156 | T15: 28 | U15: 157 | V15: 161 | W15: 29 | X15: 161 | Y15: 166 | Z15: 30 | AA15: 165 | AB15: 170 | AC15: 31 | AD15: 164 | AE15: 170 | AF15: 32 | AG15: 162 | AH15: 168 | AI15: 33 | AJ15: 157 | AK15: 164
B16: 8 | C16: Касто Кэймар Бош | E16: Rm/Cm | F16: 23 | G16: 118 | H16: 24 | I16: 130 | J16: 132 | K16: 25 | L16: 139 | M16: 142 | N16: 26 | O16: 146 | P16: 150 | Q16: 27 | R16: 151 | S16: 156 | T16: 28 | U16: 156 | V16: 161 | W16: 29 | X16: 161 | Y16: 166 | Z16: 30 | AA16: 165 | AB16: 171 | AC16: 31 | AD16: 165 | AE16: 171 | AF16: 32 | AG16: 163 | AH16: 169 | AI16: 33 | AJ16: 158 | AK16: 165
B17: 10 | C17: Огньен Короман | E17: Cf | F17: 22 | G17: 97 | H17: 23 | I17: 119 | J17: 121 | K17: 24 | L17: 131 | M17: 135 | N17: 25 | O17: 140 | P17: 145 | Q17: 26 | R17: 147 | S17: 152* | T17: 27 | U17: 153 | V17: 159 | W17: 28 | X17: 158 | Y17: 164 | Z17: 29 | AA17: 163 | AB17: 169 | AC17: 30 | AD17: 167 | AE17: 173 | AF17: 31 | AG17: 166 | AH17: 173 | AI17: 32 | AJ17: 164 | AK17: 171
B18: 11 | C18: Дэвид Донахью | E18: Cf | F18: 23 | G18: 121 | H18: 24 | I18: 140 | J18: 142 | K18: 25 | L18: 148 | M18: 150 | N18: 26 | O18: 153 | P18: 157 | Q18: 27 | R18: 158 | S18: 162 | T18: 28 | U18: 163 | V18: 167 | W18: 29 | X18: 167 | Y18: 172 | Z18: 30 | AA18: 170 | AB18: 176 | AC18: 31 | AD18: 170 | AE18: 176 | AF18: 32 | AG18: 168 | AH18: 174 | AI18: 33 | AJ18: 163 | AK18: 170
B19: 29 | C19: Юп Лаймон | E19: Cf | F19: 21 | G19: 95 | H19: 22 | I19: 115 | J19: 118 | K19: 23 | L19: 127 | M19: 130 | N19: 24 | O19: 135 | P19: 139 | Q19: 25 | R19: 141 | S19: 145 | T19: 26 | U19: 146 | V19: 151 | W19: 27 | X19: 152 | Y19: 157 | Z19: 28 | AA19: 155 | AB19: 161 | AC19: 29 | AD19: 159 | AE19: 166 | AF19: 30 | AG19: 163 | AH19: 170 | AI19: 31 | AJ19: 162 | AK19: 170
B20: 27 | C20: Хосе Антонио Серра | E20: Cf/Am | F20: 23 | G20: 113 | H20: 24 | I20: 126 | J20: 128 | K20: 25 | L20: 135 | M20: 138 | N20: 26 | O20: 142 | P20: 146 | Q20: 27 | R20: 148 | S20: 153 | T20: 28 | U20: 153 | V20: 158 | W20: 29 | X20: 158 | Y20: 163 | Z20: 30 | AA20: 161 | AB20: 167 | AC20: 30 | AD20: 161 | AE20: 167 | AF20: 31 | AG20: 159 | AH20: 165 | AI20: 32 | AJ20: 155 | AK20: 161
B21: Сила 11 лучших без тренеров / с тренерами: | H21: =(H3+H5+H6+H8+H11+H13+H14+H15+H16+H18+H20)/11 -> 23.90909091 | I21: =(I3+I5+I6+I8+I11+I13+I14+I15+I16+I18+I20)/11 -> 130.5454545 | J21: =(J3+J5+J6+J8+J11+J13+J14+J15+J16+J18+J20)/11 -> 132.6363636 | K21: =(K3+K5+K6+K8+K11+K13+K14+K15+K16+K18+K20)/11 -> 24.90909091 | L21: =(L3+L5+L6+L8+L11+L13+L14+L15+L16+L18+L20)/11 -> 139.8181818 | M21: =(M3+M5+M6+M8+M11+M13+M14+M15+M16+M18+M20)/11 -> 142.7272727 | N21: =(N3+N5+N6+N8+N11+N13+N14+N15+N16+N18+N20)/11 -> 25.90909091 | O21: =(O3+O5+O6+O8+O11+O13+O14+O15+O16+O18+O20)/11 -> 146.8181818 | P21: =(P3+P5+P6+P8+P11+P13+P14+P15+P16+P18+P20)/11 -> 150.8181818 | Q21: =(Q3+Q5+Q6+Q8+Q11+Q13+Q14+Q15+Q16+Q18+Q20)/11 -> 26.90909091 | R21: =(R3+R5+R6+R8+R11+R13+R14+R15+R16+R18+R20)/11 -> 152.8181818 | S21: =(S3+S5+S6+S8+S11+S13+S14+S15+S16+S18+S20)/11 -> 157 | T21: =(T3+T5+T6+T8+T10+T13+T14+T15+T16+T17+T18)/11 -> 27.90909091 | U21: =(U3+U5+U6+U8+U10+U13+U14+U15+U16+U17+U18)/11 -> 158.0909091 | V21: =(V3+V5+V6+V8+V10+V13+V14+V15+V16+V17+V18)/11 -> 162.8181818 | W21: =(W3+W5+W6+W8+W11+W13+W14+W15+W16+W18+W20)/11 -> 28.90909091 | X21: =(X3+X5+X6+X8+X11+X13+X14+X15+X16+X18+X20)/11 -> 162.1818182 | Y21: 167.4545455 | Z21: =(Z3+Z5+Z6+Z8+Z11+Z13+Z14+Z15+Z16+Z18+Z20)/11 -> 29.90909091 | AA21: =(AA3+AA5+AA6+AA8+AA11+AA13+AA14+AA15+AA16+AA18+AA20)/11 -> 165.9090909 | AB21: =(AB3+AB5+AB6+AB8+AB11+AB13+AB14+AB15+AB16+AB18+AB20)/11 -> 171.6363636 | AC21: =(AC3+AC5+AC6+AC8+AC10+AC11+AC13+AC14+AC16+AC17+AC18)/11 -> 30.81818182 | AD21: =(AD3+AD5+AD6+AD8+AD10+AD11+AD13+AD14+AD16+AD17+AD18)/11 -> 167.1818182 | AE21: 173.4545455 | AF21: =(AF3+AF5+AF6+AF8+AF10+AF11+AF13+AF14+AF17+AF18+AF19)/11 -> 31.63636364 | AG21: =(AG3+AG5+AG6+AG8+AG10+AG11+AG13+AG14+AG17+AG18+AG19)/11 -> 165.7272727 | AH21: 172.0909091 | AI21: =(AI3+AI5+AI6+AI8+AI10+AI11+AI13+AI14+AI17+AI18+AI19)/11 -> 32.63636364 | AJ21: 162.4545455 | AK21: 169.2727273

Sheet Лист2

Sheet Лист3
